[Event "93rd German Championship 2022"]
[Site "Magdeburg"]
[Date "2022.08.17"]
[Round "5.12"]
[White "Gungl, Theo"]
[Black "Malek, Daniel"]
[Result "1-0"]
[ECO "E46"]
[WhiteElo "2359"]
[BlackElo "2355"]
[Annotator "TA"]
[PlyCount "77"]
[EventDate "2022.08.14"]
[EventType "swiss"]
[EventCountry "GER"]
[SourceTitle "playchess.com"]
[Source "ChessBase"]
[SourceQuality "1"]
[TimeControl "40/5400+30:1800+30"]

{[%evp 13,77,8,7,0,0,-2,-2,-18,8,-13,0,-8,20,19,29,16,18,29,17,14,17,10,18,16,24,16,21,22,33,12,12,25,21,15,15,15,22,0,15,0,178,171,415,420,415,411,529,519,543,540,535,534,539,526,541,539,442,442,505,442,588,579,629,604,523,511]} 1. d4 {[%emt 0:00:02]} Nf6 {[%emt 0:00:06]} 2. c4 {[%emt 0:00:04]} e6 {[%emt 0:00:05]} 3. Nc3 {[%emt 0:00:04]} Bb4 {[%emt 0:00:04]} 4. e3 {[%emt 0:00:04]} O-O {[%emt 0:00:05]} 5. Bd2 {[%emt 0:00:04]} d5 {[%emt 0:00:12]} 6. Nf3 {[%emt 0:00:07]} b6 {[%emt 0:00:18]} 7. cxd5 {[%emt 0:00:19]} exd5 {[%emt 0:00:07]} 8. Bd3 {[%emt 0:00:06] E51: Nimzo-Indian: Rubinstein: 4...0-0 5 Nf3 d5.} Bd6 {[%emt 0:02:40]} 9. Rc1 {[%emt 0:05:15]} c5 {[%emt 0:01:17]} 10. O-O {[%emt 0:09:27] The position is equal.} Bb7 {[%emt 0:00:27]} 11. Nb5 {[%emt 0:14:21]} Be7 {[%emt 0:02:53]} 12. Ne5 {[%emt 0:03:00]} Nc6 {[%emt 0:02:20]} 13. Nxc6 {[%emt 0:04:43]} Bxc6 {[%emt 0:00:08]} 14. dxc5 {[%emt 0:00:08]} bxc5 {[%emt 0:01:28]} 15. Nd4 {[%emt 0:00:40] [#]} Bd7 $146 {[%emt 0:14:59]} ({Predecessor:} 15... cxd4 16. Rxc6 Qd7 17. Qc2 Rac8 18. Rc1 Rxc6 19. Qxc6 Qg4 20. h3 Qh4 21. Qa4 Ne4 22. Bxe4 dxe4 23. exd4 {1-0 (36) Ikonnikov,V (2497)-Elgersma,O (2258) Vlissingen 2019}) 16. Nf5 {[%emt 0:00:22]} Bxf5 {[%emt 0:00:07]} 17. Bxf5 {[%emt 0:00:02]} Qb6 {[%emt 0:00:19]} 18. Bc3 {[%emt 0:06:20]} Rfd8 {[%emt 0:01:16]} 19. Qa4 {[%emt 0:03:15]} a5 {[%emt 0:12:50]} 20. Rfd1 {[%emt 0:01:05] Inhibits d4.} g6 {[%emt 0:00:26]} 21. Bh3 {[%emt 0:08:08]} Ra7 {[%emt 0:13:58]} 22. g3 $36 {[%emt 0:02:25][%mdl 2048] White has good play.} Ne4 {[%emt 0:02:50]} 23. Bg2 {[%emt 0:02:20] A strong pair of Bishops.} f5 {[%emt 0:04:45]} ({Much less strong is} 23... Nxc3 24. bxc3 Rad7 25. Rb1 $16) 24. Rc2 {[%emt 0:08:01][%cal Bc1c2,Bc2d2,Bd2d5][%mdl 32]} Kf7 {[%emt 0:13:35]} 25. Bxe4 {[%emt 0:01:38]} fxe4 {[%emt 0:02:34]} 26. Rcd2 {[%emt 0:00:10]} Qb7 {[%emt 0:01:49] [#]} (26... Qe6 $11 {and Black is okay.}) 27. Rxd5 $1 $18 {[%emt 0:04:24]} Qxd5 {[%emt 0:04:14]} (27... Rxd5 {was called for.} 28. Qc4 Qa6 29. Qxd5+ Qe6) 28. Rxd5 {[%emt 0:00:01]} Rxd5 {[%emt 0:00:07]} 29. Qxe4 {[%emt 0:01:13]} Rdd7 {[%emt 0:01:17]} 30. Qe5 {[%emt 0:02:16] White is clearly winning.} Bf8 {[%emt 0:00:50]} 31. Qf6+ {[%emt 0:01:33]} Ke8 {[%emt 0:00:15]} 32. Qe6+ {[%emt 0:00:16]} Be7 {[%emt 0:01:21]} 33. a4 {[%emt 0:01:54]} Rd6 {[%emt 0:01:24]} 34. Qc8+ {[%emt 0:01:49]} Rd8 {[%emt 0:00:18]} 35. Qc6+ {[%emt 0:01:26]} Kf7 {[%emt 0:00:19]} 36. Qb6 {[%emt 0:00:48]} Rdd7 {[%emt 0:00:32]} 37. Qb3+ {[%emt 0:01:39]} Kf8 {[%emt 0:00:19]} 38. Qb8+ {[%emt 0:00:16]} Kf7 {[%emt 0:03:25]} 39. Qh8 {[%emt 0:00:32] Weighted Error Value: White=0.05 (flawless) /Black=0.36} 1-0

[Event "93rd German Championship 2022"]
[Site "Magdeburg"]
[Date "2022.08.17"]
[Round "5.13"]
[White "Pahl, Erik"]
[Black "Parvanyan, Alfred"]
[Result "0-1"]
[ECO "B33"]
[WhiteElo "2203"]
[BlackElo "2126"]
[Annotator "TA"]
[PlyCount "78"]
[EventDate "2022.08.14"]
[EventType "swiss"]
[EventCountry "GER"]
[SourceTitle "playchess.com"]
[Source "ChessBase"]
[SourceQuality "1"]
[TimeControl "40/5400+30:1800+30"]

{[%evp 24,78,21,24,19,10,12,6,15,19,18,10,17,7,12,11,8,0,42,22,57,55,142,112,258,253,231,181,169,92,77,-1045,-1045,-1041,-1034,-1045,-1031,-1007,-1004,-988,-988,-988,-845,-1055,-1044,-11843,-9863,-1605,-5177,-2093,0,-1405,0,-1574,-1165,-5181,-5112]} 1. e4 {[%emt 0:00:05]} c5 {[%emt 0:01:05]} 2. Nf3 {[%emt 0:00:53]} Nc6 {[%emt 0:00:08]} 3. d4 {[%emt 0:00:07]} cxd4 {[%emt 0:00:06]} 4. Nxd4 {[%emt 0:00:06]} Nf6 {[%emt 0:00:08]} 5. Nc3 {[%emt 0:00:04]} e5 {[%emt 0:00:16]} 6. Ndb5 {[%emt 0:00:13]} d6 {[%emt 0:00:12]} 7. Bg5 {[%emt 0:00:07]} a6 {[%emt 0:00:06]} 8. Na3 {[%emt 0:00:04]} b5 {[%emt 0:00:08]} 9. Nd5 {[%emt 0:00:05]} Be7 {[%emt 0:00:11]} 10. Bxf6 {[%emt 0:00:06]} Bxf6 {[%emt 0:00:08]} 11. c3 {[%emt 0:00:04][%cal Bc2c3,Bc3b4,Bb4b5,Bb5b6,Bb6b7][%mdl 32]} Bg5 {[%emt 0:00:41]} 12. Nc2 {[%emt 0:00:09]} Rb8 {[%emt 0:00:11]} 13. a4 {[%emt 0:01:25]} bxa4 {[%emt 0:05:19] B33: Sicilian: Pelikan and Sveshnikov Variations.} 14. Ncb4 {[%emt 0:00:08]} Nxb4 {[%emt 0:02:38]} 15. cxb4 {[%emt 0:00:06]} Bd7 {[%emt 0:03:16] The position is equal.} 16. Bxa6 {[%emt 0:03:27]} O-O {[%emt 0:01:34]} 17. O-O {[%emt 0:02:50]} Bc6 {[%emt 0:03:00]} 18. Rxa4 {[%emt 0:01:06]} Bxa4 {[%emt 0:12:52]} 19. Qxa4 {[%emt 0:01:55]} Kh8 {[%emt 0:00:07]} 20. b5 {[%emt 0:02:40]} f5 {[%emt 0:08:15]} 21. exf5 {[%emt 0:00:33] [#]} Rxf5 $146 {[%emt 0:02:08]} ({Predecessor:} 21... Qd7 22. Qc4 Qxf5 23. f3 Bd8 24. Qc6 Qd3 25. Bb7 Bg5 26. Ra1 e4 27. f4 Bxf4 28. Nxf4 {0-1 (35) Haring,F (2310)-Debevec,B (2169) Pardubice 2018}) 22. b6 {[%emt 0:02:27]} Bh4 {[%emt 0:25:26]} ({Black should try} 22... Qg8 $14 23. Qc6 e4) 23. b7 $16 {[%emt 0:10:09]} e4 {[%emt 0:06:37]} (23... Bg5 $16 {was necessary.}) 24. Qxe4 $18 {[%emt 0:06:10]} Re5 {[%emt 0:00:26]} 25. Qc4 {[%emt 0:00:39] And now g3 would win.} Qa5 {[%emt 0:01:39]} 26. Nb4 {[%emt 0:10:19]} ({And not} 26. Qxh4 Qxa6 27. Qd4 Qxb7 $17) (26. Qc8+ $18 Re8 27. Qc6) 26... Bxf2+ $16 {[%emt 0:03:25][%mdl 64] Decoy} 27. Kxf2 $2 {[%emt 0:01:54][%mdl 8192] [#]} ({Reject} 27. Rxf2 Re1+ 28. Rf1 Qb6+ 29. Kh1 Rxf1+ 30. Qxf1 Qxb4 $11) (27. Kh1 $16 d5 28. Qf4) 27... Qb6+ $1 $19 {[%emt 0:01:35]} 28. Kg3 {[%emt 0:00:17]} Qe3+ {[%emt 0:00:52]} 29. Rf3 {[%emt 0:02:51]} Qe1+ {[%emt 0:01:59]} 30. Kg4 {[%emt 0:01:10]} Re4+ {[%emt 0:01:29][%mdl 64] Skewer, Double Attack} 31. Rf4 {[%emt 0:00:10]} Rxc4 {[%emt 0:02:06]} 32. Rxc4 {[%emt 0:02:02]} Qe6+ {[%emt 0:01:00]} 33. Kg3 {[%emt 0:01:40] [#]} Rxb7 $3 {[%emt 0:00:40][%cal Og7g5][%mdl 512]} 34. b3 {[%emt 0:00:26]} (34. h4 Rb8) 34... Qe3+ {[%emt 0:02:18]} 35. Kg4 {[%emt 0:00:15]} Qe2+ {[%emt 0:00:36]} (35... Rb8 $142 36. g3 g6) 36. Kg3 {[%emt 0:00:10]} Qe3+ {[%emt 0:03:30]} 37. Kg4 {[%emt 0:00:06] Threatening mate with Rc8+.} Qe6+ {[%emt 0:02:15]} 38. Kg3 $1 {[%emt 0:00:06]} Rb8 {[%emt 0:00:28]} 39. Kh4 {[%emt 0:01:07] [#]} Rxb4 $1 {[%emt 0:00:16] Weighted Error Value: White=0.84/Black=0.19 (very precise)} 0-1

[Event "93rd German Championship 2022"]
[Site "Magdeburg"]
[Date "2022.08.17"]
[Round "5.14"]
[White "Feuerstack, Aljoscha"]
[Black "Arnold, Max"]
[Result "1-0"]
[ECO "A40"]
[WhiteElo "2473"]
[BlackElo "2350"]
[Annotator "TA"]
[PlyCount "103"]
[EventDate "2022.08.14"]
[EventType "swiss"]
[EventCountry "GER"]
[SourceTitle "playchess.com"]
[Source "ChessBase"]
[SourceQuality "1"]
[TimeControl "40/5400+30:1800+30"]

{[%evp 12,103,0,7,4,5,8,12,12,12,18,10,12,9,7,8,11,16,18,14,17,31,32,25,80,72,78,0,0,0,0,0,0,0,0,0,0,0,0,0,11,0,17,20,100,0,0,0,0,0,0,0,0,4,18,7,5,8,5,8,7,10,7,7,121,127,120,120,122,60,123,127,127,129,184,164,298,295,291,296,297,290,287,191,160,0,285,285,260,206,746,732,624,605]} 1. d4 {[%emt 0:00:04]} Nf6 {[%emt 0:00:32]} 2. c4 {[%emt 0:00:05]} e6 {[%emt 0:00:07]} 3. g3 {[%emt 0:00:11]} Bb4+ {[%emt 0:00:28]} 4. Nd2 {[%emt 0:00:26]} c5 {[%emt 0:00:16]} 5. a3 {[%emt 0:00:25]} Bxd2+ {[%emt 0:00:17]} 6. Qxd2 {[%emt 0:00:06]} cxd4 {[%emt 0:00:14]} 7. Nf3 {[%emt 0:00:31]} d5 {[%emt 0:00:44] E00: Catalan Bogo-Indian (3 g3 Bb4+).} 8. Bg2 $1 {[%emt 0:00:25][%mdl 4] is more profitable than 8.cxd5 at the moment.} dxc4 {[%emt 0:00:50] And now ...Nc6 would win.} 9. Qxd4 {[%emt 0:00:08]} Qxd4 {[%emt 0:00:32] The position is equal.} 10. Nxd4 {[%emt 0:00:06] Strongly threatening Nb5.} O-O {[%emt 0:00:25]} 11. Be3 {[%emt 0:00:40]} Nd5 {[%emt 0:00:46]} 12. Rc1 {[%emt 0:00:07]} Nxe3 {[%emt 0:00:10]} 13. fxe3 {[%emt 0:00:05]} Nd7 {[%emt 0:01:00][%cal Bb8d7,Bd7f6,Bf6g4][%mdl 32]} 14. Rxc4 {[%emt 0:00:08]} Nf6 {[%emt 0:00:54]} 15. O-O {[%emt 0:05:37] [#]} Rb8 $146 {[%emt 0:21:18]} ({Predecessor:} 15... Rd8 16. Rc7 Rb8 17. b4 Rd7 18. Rc4 Rd8 19. Rc7 e5 20. Nb5 Bg4 21. Re1 a6 {½-½ (46) Wojtaszek,R (2744)-Karjakin,S (2778) Shamkir 2018}) 16. Rfc1 {[%emt 0:34:10]} e5 {[%emt 0:06:46]} 17. Nf3 {[%emt 0:02:30]} Be6 {[%emt 0:08:26]} (17... Nd5 $11) 18. Ra4 $1 $16 {[%emt 0:17:26]} Ng4 {[%emt 0:09:40]} 19. Rxa7 {[%emt 0:16:24]} ({White should play} 19. Bh3 $16 h5 20. Bxg4 (20. Rxa7 f6 $14) 20... Bxg4 21. Rxa7 (21. Nxe5 Bxe2 22. Re1 Ba6 $11)) 19... Rfc8 $11 {[%emt 0:03:24]} 20. Re1 {[%emt 0:05:26]} Nxe3 {[%emt 0:03:58]} 21. Nxe5 {[%emt 0:00:46]} Nxg2 {[%emt 0:01:17]} 22. Kxg2 {[%emt 0:00:07]} Rc2 {[%emt 0:03:04]} 23. b4 {[%emt 0:02:15]} f6 {[%emt 0:10:58]} 24. Nf3 {[%emt 0:04:38]} Bc4 {[%emt 0:02:27]} 25. Kf2 {[%emt 0:00:10]} Ra2 {[%emt 0:02:36]} 26. Ng1 {[%emt 0:04:23]} Ba6 {[%emt 0:06:07]} 27. Rb1 {[%emt 0:00:17] b5 is the strong threat.} Bb5 {[%emt 0:01:05]} (27... Bc4 $1 $11) 28. Ra5 {[%emt 0:04:11]} (28. Rb3 $1 $16) 28... Bc4 {[%emt 0:02:03]} 29. Rc1 {[%emt 0:00:37]} b5 {[%emt 0:00:43]} 30. Rc3 {[%emt 0:00:07]} Re8 {[%emt 0:02:06]} 31. Re3 {[%emt 0:00:26]} Rxe3 {[%emt 0:00:31]} 32. Kxe3 {[%emt 0:00:04][%mdl 4096] Endgame KRB-KRN} Kf7 {[%emt 0:00:11]} 33. h4 {[%emt 0:02:18]} h5 {[%emt 0:00:45]} 34. Kd4 {[%emt 0:00:57][%cal Oa3a4]} Rd2+ {[%emt 0:07:19]} 35. Kc3 {[%emt 0:00:47]} Rd1 {[%emt 0:00:57]} 36. Nh3 {[%emt 0:00:06]} Bxe2 {[%emt 0:02:44]} 37. Nf4 {[%emt 0:00:10] Prevents Rd3+.} Bf1 {[%emt 0:00:40]} (37... Bf3 $1 $11 {remains equal.}) 38. Ra7+ $16 {[%emt 0:00:31]} ({Much worse is} 38. Nxh5 $6 Rd7 $11) 38... Kf8 {[%emt 0:02:24]} 39. Ne6+ {[%emt 0:01:27]} Kg8 {[%emt 0:00:17]} 40. Rxg7+ {[%emt 0:00:05]} Kh8 {[%emt 0:00:07]} 41. Rg6 $1 {[%emt 0:05:46] White is more active.} Rd3+ {[%emt 0:02:05] [#]} 42. Kb2 $1 {[%emt 0:02:36]} Rf3 {[%emt 0:18:20]} (42... Rd2+ $16 {was worth a try.} 43. Kc1 Ra2 44. Rxf6 Bc4) 43. Nf4 $18 {[%emt 0:01:33]} Kh7 {[%emt 0:04:55]} (43... Bc4 {might work better.} 44. Nxh5 f5) 44. Rxf6 {[%emt 0:00:48]} Rxg3 {[%emt 0:00:29]} 45. Rf5 {[%emt 0:09:41]} ({Resist} 45. Nxh5 Rg1 46. Kc3 Be2 $18) 45... Rf3 {[%emt 0:01:49]} 46. Rxh5+ {[%emt 0:00:07]} Kg8 {[%emt 0:00:53]} 47. Rg5+ {[%emt 0:00:05]} Kh7 {[%emt 0:01:01]} 48. Rh5+ {[%emt 0:02:22]} (48. Ne6 $16) 48... Kg8 $1 {[%emt 0:01:48]} 49. Nd5 {[%emt 0:03:46][%cal Oh5f5] Threatens to win with Rf5!} Rf2+ {[%emt 0:00:48]} 50. Kc1 {[%emt 0:00:11][%cal Oh5f5] Hoping for Rf5!} Rf3 {[%emt 0:01:07] [#] Inhibits Rf5.} (50... Bd3 51. Rg5+ Kh7) 51. Rf5 $3 {[%emt 0:00:19][%mdl 512]} Rxa3 {[%emt 0:00:18] [#]} 52. Kb2 $1 {[%emt 0:00:05] Weighted Error Value: White=0.12 (very precise) /Black=0.13 (very precise)} 1-0

[Event "93rd German Championship 2022"]
[Site "Magdeburg"]
[Date "2022.08.17"]
[Round "5.15"]
[White "Miller, Eduard"]
[Black "Yi, Danny"]
[Result "1/2-1/2"]
[ECO "C30"]
[WhiteElo "2350"]
[BlackElo "2273"]
[Annotator "TA"]
[PlyCount "90"]
[EventDate "2022.08.14"]
[EventType "swiss"]
[EventCountry "GER"]
[SourceTitle "playchess.com"]
[Source "ChessBase"]
[SourceQuality "1"]
[TimeControl "40/5400+30:1800+30"]

{[%evp 9,90,22,38,38,23,-23,2,10,13,-22,-12,-34,-27,-25,-24,-16,-16,-12,0,0,0,16,0,0,28,30,18,22,41,35,48,39,83,53,57,46,44,35,91,79,83,91,71,92,127,119,131,101,106,55,68,60,60,55,71,31,47,0,0,0,0,0,0,-77,0,0,0,0,0,0,0,0,0,0,0,0,0,0,0,0,0,0,0]} 1. e4 {[%emt 0:00:03]} e5 {[%emt 0:00:26]} 2. f4 {[%emt 0:00:05]} Bc5 {[%emt 0:02:24]} 3. Nf3 {[%emt 0:00:19]} d6 {[%emt 0:02:10]} 4. c3 {[%emt 0:00:55]} Bg4 {[%emt 0:26:16]} 5. h3 {[%emt 0:01:25]} Bxf3 {[%emt 0:00:40]} 6. Qxf3 {[%emt 0:00:05] C30: King's Gambit Declined.} Nd7 {[%emt 0:13:25]} 7. Bc4 {[%emt 0:08:50]} (7. d3 {was preferrable.}) 7... Qe7 {[%emt 0:05:16]} 8. d3 {[%emt 0:08:43]} Ngf6 {[%emt 0:04:31]} 9. f5 {[%emt 0:04:14] [#]} O-O-O $146 {[%emt 0:02:10][%cal Od6d5]} ({Predecessor:} 9... d5 10. Bxd5 Nxd5 11. exd5 O-O-O 12. b4 Bb6 13. Kd1 Rhe8 14. Re1 h6 15. a4 a5 16. bxa5 Bxa5 {1-0 (52) Kavcic,U (2245)-Azarov,S (2445) Mureck 1998}) 10. Bg5 {[%emt 0:06:47]} h6 {[%emt 0:01:49]} 11. Bh4 {[%emt 0:00:50]} g5 {[%emt 0:01:16]} 12. fxg6 {[%emt 0:21:35]} fxg6 {[%emt 0:00:07]} 13. Nd2 {[%emt 0:00:34]} Rhf8 {[%emt 0:02:23]} 14. Qe2 {[%emt 0:14:31]} g5 {[%emt 0:06:40]} 15. Bg3 {[%emt 0:00:04]} Qe8 {[%emt 0:06:31] [#] White must now prevent ...Nh5.} 16. Rf1 {[%emt 0:00:42]} Qg6 {[%emt 0:01:10]} (16... Nh5 $5 {[%cal Rh5g3]} 17. Rxf8 Nxf8 $11) 17. Be6 {[%emt 0:03:19]} Kb8 {[%emt 0:05:49][%cal Of6e4]} 18. Bf5 {[%emt 0:05:36]} Qg8 {[%emt 0:01:08]} 19. b4 {[%emt 0:03:55]} Bb6 {[%emt 0:00:36]} 20. Nc4 $36 {[%emt 0:00:05][%mdl 2048] White is pushing.} (20. a4 $5 {[%cal Ra4a5]} a6 21. Nc4 $14) 20... Rde8 {[%emt 0:04:23]} 21. Nxb6 {[%emt 0:01:21] White is more active.} (21. a4 {keeps more tension.} a6 22. Kd2 Ba7 23. Kc2) 21... Nxb6 {[%emt 0:00:23]} 22. c4 {[%emt 0:02:05] Prevents d5.} Qf7 {[%emt 0:02:59]} 23. Bf2 {[%emt 0:02:51]} d5 {[%emt 0:03:43]} (23... Nh5 $14) 24. Bc5 $16 {[%emt 0:04:11] This bishop pair is nice.} ({Resist} 24. cxd5 Nfxd5 25. Bc5 Ne7 $14) 24... dxc4 {[%emt 0:02:41]} 25. Bxf8 {[%emt 0:00:23]} Qxf8 {[%emt 0:00:05]} 26. a3 {[%emt 0:00:47]} cxd3 {[%emt 0:00:51]} 27. Qxd3 {[%emt 0:00:07]} Rd8 {[%emt 0:01:06]} 28. Qe2 {[%emt 0:00:44]} c5 {[%emt 0:01:16]} 29. Rd1 {[%emt 0:04:09]} ({White should play} 29. Rf3 $16) 29... Rxd1+ $14 {[%emt 0:00:15]} 30. Qxd1 {[%emt 0:00:06]} cxb4 {[%emt 0:00:08]} 31. axb4 {[%emt 0:00:33]} Qxb4+ {[%emt 0:00:14]} 32. Qd2 {[%emt 0:00:08]} Qe7 {[%emt 0:00:32]} 33. Rf3 {[%emt 0:00:38]} (33. Ke2 $1 $14) 33... Nc4 $11 {[%emt 0:00:25]} 34. Rc3 {[%emt 0:01:18]} b5 {[%emt 0:00:50]} 35. Qd3 {[%emt 0:01:20]} Kc7 {[%emt 0:00:23]} 36. Kf1 {[%emt 0:02:47] [#]} (36. Rxc4+ $11 {keeps the balance.} bxc4 37. Qxc4+ Kb6 38. Ke2) 36... a6 {[%emt 0:00:07]} (36... Nd7 $1 $17 {Threatens to win with ...Nc5.} 37. Kg1 a5) 37. Rxc4+ {[%emt 0:00:37] The position is equal.} bxc4 {[%emt 0:00:11]} 38. Qxc4+ {[%emt 0:00:02][%mdl 4096] Endgame KQB-KQN} Kb6 {[%emt 0:01:46]} 39. Bc8 {[%emt 0:00:09]} Qd6 {[%emt 0:00:55]} 40. Qxa6+ {[%emt 0:00:27]} Kc7 {[%emt 0:00:22] And now ...Qd1+ would win.} 41. Qb7+ {[%emt 0:04:25]} Kd8 {[%emt 0:00:41] Hoping for ...Qd1+.} 42. Bf5 {[%emt 0:08:46]} Qd1+ {[%emt 0:04:34]} 43. Kf2 {[%emt 0:00:06]} Qd2+ {[%emt 0:00:16]} 44. Kg1 {[%emt 0:00:50]} Qc1+ {[%emt 0:01:25]} 45. Kh2 {[%emt 0:00:15] White wants to mate with Qb8+.} Qf4+ {[%emt 0:00:18] Weighted Error Value: White=0.14 (very precise) /Black=0.11 (very precise)} 1/2-1/2

[Event "93rd German Championship 2022"]
[Site "Magdeburg"]
[Date "2022.08.17"]
[Round "5.16"]
[White "Colbow, Collin"]
[Black "Dobrikov, Marco"]
[Result "1/2-1/2"]
[ECO "B91"]
[WhiteElo "2325"]
[BlackElo "2223"]
[Annotator "TA"]
[PlyCount "94"]
[EventDate "2022.08.14"]
[EventType "swiss"]
[EventCountry "GER"]
[SourceTitle "playchess.com"]
[Source "ChessBase"]
[SourceQuality "1"]
[TimeControl "40/5400+30:1800+30"]

{[%evp 20,94,10,6,21,15,32,42,31,17,41,47,36,15,116,103,116,104,110,111,118,111,108,113,111,102,112,100,86,93,91,37,111,95,118,73,125,40,346,122,174,0,0,0,0,0,0,0,0,0,0,-8,-8,-8,-8,-8,-8,-8,8,-8,8,8,8,8,8,0,0,0,0,0,0,0,0,0,15,0,0]} 1. e4 {[%emt 0:00:12]} c5 {[%emt 0:00:04]} 2. Nf3 {[%emt 0:00:09]} d6 {[%emt 0:00:04]} 3. d4 {[%emt 0:00:05]} cxd4 {[%emt 0:00:04]} 4. Nxd4 {[%emt 0:00:04]} Nf6 {[%emt 0:00:04]} 5. Nc3 {[%emt 0:00:06]} a6 {[%emt 0:00:03]} 6. g3 {[%emt 0:00:06]} e5 {[%emt 0:00:35]} 7. Nde2 {[%emt 0:00:11]} Be6 {[%emt 0:04:49]} 8. Bg2 {[%emt 0:09:49]} Be7 {[%emt 0:05:05]} 9. O-O {[%emt 0:01:11]} O-O {[%emt 0:01:16]} 10. a4 {[%emt 0:00:08]} Nbd7 {[%emt 0:01:06]} 11. h3 {[%emt 0:03:31]} Rc8 {[%emt 0:00:45] B91: Sicilian Najdorf: 6 g3.} 12. b3 {[%emt 0:05:58]} Qc7 {[%emt 0:10:44][%cal Ob7b5]} 13. f4 {[%emt 0:06:50]} Nb8 {[%emt 0:04:45] White is slightly better.} 14. Be3 {[%emt 0:06:04] [#]} Nc6 $146 {[%emt 0:04:01]} ({Predecessor:} 14... exf4 15. gxf4 Nc6 16. Nd5 Bxd5 17. exd5 Nb8 18. c4 Nfd7 {1-0 (41) Juras,Z-Gorbunov,E ICCF email 2015}) 15. f5 {[%emt 0:17:49]} Bd7 {[%emt 0:00:01][%cal Oc6d4]} 16. g4 $36 {[%emt 0:00:07][%cal Bg3g4,Bg4g5][%mdl 2080] Black must now prevent g5. White is pushing.} Nd4 {[%emt 0:03:38] [#]} (16... Nb4 $11 {remains equal.}) 17. g5 $1 $16 {[%emt 0:04:10]} (17. Bxd4 exd4 18. Qxd4 d5 $17) 17... Nxe2+ {[%emt 0:00:15]} 18. Nxe2 {[%emt 0:00:12]} Ne8 {[%emt 0:01:49]} 19. c4 {[%emt 0:03:37][%cal Bc2c4,Bc4d5][%mdl 32] White is more active.} d5 {[%emt 0:07:39]} 20. cxd5 {[%emt 0:12:20]} ({But not} 20. Qxd5 $6 Rd8 21. Qd3 (21. g6 $2 Bc8 $19) 21... Bxf5 $11) 20... Bc5 {[%emt 0:00:04]} 21. Qd3 {[%emt 0:01:47]} Qb6 {[%emt 0:02:01]} 22. Bxc5 {[%emt 0:01:04]} Rxc5 {[%emt 0:03:36]} 23. Kh1 {[%emt 0:01:27]} f6 {[%emt 0:04:50]} 24. h4 {[%emt 0:03:18]} Nd6 {[%emt 0:00:29]} 25. Rg1 {[%emt 0:03:20]} ({Better is} 25. gxf6 $16 Rxf6 26. Qg3) 25... Kh8 {[%emt 0:00:45]} (25... Rcc8 $14) 26. gxf6 {[%emt 0:04:33]} gxf6 {[%emt 0:00:02]} 27. Qe3 {[%emt 0:01:20] Rac1 is the strong threat.} Qb4 {[%emt 0:06:24]} 28. Bf3 {[%emt 0:10:33]} ({White should try} 28. Rgc1 $16 Rxc1+ 29. Rxc1) 28... Rc2 {[%emt 0:12:24][%mdl 8192]} (28... Nxf5 $1 $14 29. exf5 Qxh4+ 30. Kg2 Bxf5) 29. Rg4 $2 {[%emt 0:03:02]} (29. Qh6 $18 {[%cal Rh6f8] and the rest is easy.} Ne8 30. Rg6) 29... Qd2 {[%emt 0:02:51] [#]} (29... Nf7 $16 30. Rag1 Qc5) 30. Qxd2 $2 {[%emt 0:01:21]} (30. Qb6 $1 $18 {[%cal Rb6d6]} Qd3 31. Rf1 Nxe4 32. Rxe4) 30... Rxd2 $11 {[%emt 0:00:05] The position is equal.} 31. Rc1 {[%emt 0:01:03]} Rd3 {[%emt 0:04:15]} 32. Rc3 {[%emt 0:00:04]} Rxc3 {[%emt 0:00:08]} 33. Nxc3 {[%emt 0:00:03]} Rc8 {[%emt 0:00:04]} 34. Nd1 {[%emt 0:01:14]} Rc1 {[%emt 0:01:15]} 35. Rg1 {[%emt 0:00:35]} Rb1 {[%emt 0:00:11]} 36. Ne3 {[%emt 0:00:28]} Rxb3 {[%emt 0:04:28]} 37. Ng4 {[%emt 0:00:04][%cal Og4f6]} Rxf3 {[%emt 0:02:27]} 38. Nxf6 {[%emt 0:00:05][%csl Gf6][%cal Rg1g8]} Rh3+ {[%emt 0:00:02]} 39. Kg2 {[%emt 0:00:05] [#]} Bxf5 {[%emt 0:08:52]} 40. exf5 {[%emt 0:00:28][%mdl 4096] Endgame KRN-KRN} Rc3 {[%emt 0:00:04]} 41. Kf2 {[%emt 0:06:04][%csl Gf6][%cal Rg1g8]} Rc8 {[%emt 0:03:41] Against Rg8+} 42. Nd7 {[%emt 0:08:19]} Nxf5 {[%emt 0:07:45]} 43. Nxe5 {[%emt 0:03:07][%cal Re5f7]} Rf8 {[%emt 0:00:02] Against Nf7+} 44. Nd7 {[%emt 0:01:50]} Rf7 {[%emt 0:01:12]} 45. Ne5 {[%emt 0:00:03][%cal Re5f7]} Rf8 {[%emt 0:02:53]} 46. Nd7 {[%emt 0:00:27]} Rd8 {[%emt 0:00:54]} 47. Ne5 {[%emt 0:01:07][%cal Re5f7]} Rf8 {[%emt 0:00:04] Inhibits Nf7+.  Weighted Error Value: White=0.20 (precise) /Black=0.22 (precise)} 1/2-1/2